[Event "French-ch U12-U14 2024"]
[Site "Agen"]
[Date "2024.04.17"]
[Round "5.5"]
[White "Chevillon, Ines"]
[Black "Anseeuw, Emma"]
[Result "0-1"]
[ECO "B06"]
[WhiteElo "1520"]
[BlackElo "1667"]
[Annotator "NA RC COMBH"]
[PlyCount "160"]
[EventDate "2024.04.14"]
[EventType "swiss"]
[EventCountry "FRA"]
[SourceTitle "playchess.com"]
[Source "ChessBase"]
[SourceQuality "1"]
[TimeControl "5400+30"]

1. e4 {[%emt 0:00:01]} c5 {[%emt 0:00:08]} 2. c3 {[%emt 0:00:11]} d5 {[%emt 0:00:14]} 3. exd5 {[%emt 0:00:12]} Qxd5 {[%emt 0:00:11]} 4. d4 {[%emt 0:00:10]} g6 {[%emt 0:00:37]} 5. Nf3 {[%emt 0:00:27]} Bg7 {[%emt 0:00:27]} 6. Be3 {[%emt 0:00:59]} cxd4 {[%emt 0:00:39]} 7. cxd4 {[%emt 0:00:13]} Nf6 {[%emt 0:01:24]} 8. Nc3 {[%emt 0:01:21]} Qd8 {[%emt 0:01:09]} 9. Be2 {[%emt 0:01:44]} O-O {[%emt 0:01:04]} 10. O-O {[%emt 0:00:26]} Nc6 {[%emt 0:01:29]} 11. h3 {[%emt 0:01:49]} Bf5 {[%emt 0:02:03]} 12. Qd2 {[%emt 0:03:10]} Ne4 {[%emt 0:03:36]} 13. Nxe4 {[%emt 0:03:12]} Bxe4 {[%emt 0:00:39]} 14. Rfd1 {[%emt 0:01:11]} a5 {[%emt 0:08:53]} 15. Ne1 {[%emt 0:06:31]} Qd5 {[%emt 0:13:07]} 16. Bf3 {[%emt 0:06:22]} Rfd8 {[%emt 0:05:05]} 17. Bxe4 {[%emt 0:04:21]} Qxe4 {[%emt 0:00:30]} 18. f3 {[%emt 0:00:48]} Qd5 {[%emt 0:01:45]} 19. Nc2 {[%emt 0:01:46]} e5 {[%emt 0:04:47]} 20. Bg5 {[%emt 0:06:01]} Rd7 {[%emt 0:08:12]} 21. Ne3 {[%emt 0:01:32]} Qxd4 {[%emt 0:00:53]} 22. Qxd4 {[%emt 0:00:50]} Rxd4 {[%emt 0:00:47]} 23. Rxd4 {[%emt 0:00:48]} exd4 {[%emt 0:00:29]} 24. Nc4 {[%emt 0:00:58]} Re8 {[%emt 0:01:58]} 25. Kf1 {[%emt 0:02:11]} Nb4 {[%emt 0:01:33]} 26. a3 {[%emt 0:02:11]} Nc2 {[%emt 0:00:16]} 27. Rc1 {[%emt 0:00:45]} Ne3+ {[%emt 0:00:20]} 28. Bxe3 {[%emt 0:00:29]} dxe3 {[%emt 0:00:20]} 29. Ke2 {[%emt 0:01:10]} b5 {[%emt 0:01:07]} 30. Nd6 {[%emt 0:02:47]} Rd8 {[%emt 0:01:57]} 31. Nxb5 {[%emt 0:06:57]} Bxb2 {[%emt 0:01:05]} 32. Rc2 {[%emt 0:00:56]} Bg7 {[%emt 0:00:50]} 33. Kxe3 {[%emt 0:00:58]} Rb8 {[%emt 0:00:47]} 34. a4 {[%emt 0:01:04]} Bf8 {[%emt 0:02:05]} 35. Kf4 {[%emt 0:02:07]} Bh6+ {[%emt 0:01:09]} 36. Kg3 {[%emt 0:01:07]} Re8 {[%emt 0:01:20]} 37. Kf2 {[%emt 0:02:36]} Be3+ {[%emt 0:01:03]} 38. Kg3 {[%emt 0:02:45]} Re5 {[%emt 0:02:12]} 39. Rc8+ {[%emt 0:02:38]} Kg7 {[%emt 0:00:20]} 40. Ra8 {[%emt 0:01:22]} Rg5+ {[%emt 0:00:26]} 41. Kh2 {[%emt 0:00:23]} Bf4+ {[%emt 0:00:14]} 42. Kg1 {[%emt 0:00:33]} Bg3 {[%emt 0:00:30]} 43. Rd8 {[%emt 0:00:47]} Rc5 {[%emt 0:01:05]} 44. Rd1 {[%emt 0:01:25]} Rc2 {[%emt 0:01:06]} 45. Ra1 {[%emt 0:01:41]} Kf6 {[%emt 0:01:32]} 46. Nd4 {[%emt 0:02:32]} Bf2+ {[%emt 0:00:13]} 47. Kf1 {[%emt 0:00:30]} Bxd4 {[%emt 0:00:07]} 48. Rd1 {[%emt 0:00:44]} Rf2+ {[%emt 0:00:23]} 49. Ke1 {[%emt 0:00:26]} Ba7 {[%emt 0:02:03]} 50. Rd7 {[%emt 0:00:12]} Be3 {[%emt 0:00:56]} 51. Rd3 {[%emt 0:00:30]} Bc5 {[%emt 0:00:23]} 52. Rd5 {[%emt 0:00:09]} Rc2 {[%emt 0:00:25]} 53. Kd1 {[%emt 0:00:37]} Rc4 {[%emt 0:00:43]} 54. Ke2 {[%emt 0:00:36]} Bb4 {[%emt 0:00:30]} 55. Rd1 {[%emt 0:01:11]} Rc2+ {[%emt 0:00:21]} 56. Kf1 {[%emt 0:00:37]} Ra2 {[%emt 0:00:07]} 57. Rd8 {[%emt 0:00:33]} Rxa4 {[%emt 0:00:24]} 58. Ra8 {[%emt 0:00:17]} Ra2 {[%emt 0:00:08]} 59. g4 {[%emt 0:00:40]} Rh2 {[%emt 0:00:22]} 60. Ra6+ {[%emt 0:00:16]} Kg7 {[%emt 0:00:52]} 61. h4 {[%emt 0:00:47]} h5 {[%emt 0:00:54]} 62. g5 {[%emt 0:00:29]} Rxh4 {[%emt 0:00:47]} 63. Kg2 {[%emt 0:00:20]} Rc4 {[%emt 0:00:53]} 64. Kf2 {[%emt 0:00:25]} h4 {[%emt 0:00:43]} 65. Kg2 {[%emt 0:00:10]} Rc5 {[%emt 0:00:33]} 66. Kh3 {[%emt 0:00:24]} Be1 {[%emt 0:00:06]} 67. f4 {[%emt 0:00:26]} Rc3+ {[%emt 0:00:26]} 68. Kh2 {[%emt 0:00:12]} Rf3 {[%emt 0:00:21]} 69. Kg2 {[%emt 0:00:50]} Rxf4 {[%emt 0:00:12]} 70. Kh1 {[%emt 0:00:21]} a4 {[%emt 0:00:16]} 71. Kh2 {[%emt 0:00:05]} Rd4 {[%emt 0:01:28]} 72. Kh1 {[%emt 0:00:16]} Bg3 {[%emt 0:00:31]} 73. Kg2 {[%emt 0:00:11]} Rd2+ {[%emt 0:00:25]} 74. Kh1 {[%emt 0:00:32]} Ra2 {[%emt 0:00:44]} 75. Kg1 {[%emt 0:00:27]} h3 {[%emt 0:00:14]} 76. Kf1 {[%emt 0:00:35]} Bf4 {[%emt 0:00:31]} 77. Kg1 {[%emt 0:00:08]} h2+ {[%emt 0:00:17]} 78. Kh1 {[%emt 0:00:09]} Ra1+ {[%emt 0:00:07]} 79. Kg2 {[%emt 0:00:05]} h1=Q+ {[%emt 0:00:09]} 80. Kf2 {[%emt 0:00:09]} Ra2# {[%emt 0:31:33]} 0-1

[Event "French-ch U12-U14 2024"]
[Site "Agen"]
[Date "2024.04.17"]
[Round "5.9"]
[White "Dang, Louis"]
[Black "Landolsi, Iyad"]
[Result "0-1"]
[ECO "C55"]
[WhiteElo "1762"]
[BlackElo "1970"]
[Annotator "TA"]
[PlyCount "72"]
[EventDate "2024.04.14"]
[EventType "swiss"]
[EventCountry "FRA"]
[SourceTitle "playchess.com"]
[Source "ChessBase"]
[SourceQuality "1"]
[TimeControl "5400+30"]

{[%evp 10,72,39,34,33,37,58,35,63,62,91,-79,-57,-67,0,-72,-78,-82,-16,-27,-27,-51,-24,-26,-20,-46,0,-66,-52,-56,0,0,30,29,27,19,19,21,12,0,22,21,68,67,103,0,-15,-62,-66,-63,-65,-195,-70,-68,-69,-197,-107,-112,-114,-909,-916,-29990,-826,-29991,-29992]} 1. e4 {[%emt 0:00:07]} e5 {[%emt 0:00:22]} 2. Nf3 {[%emt 0:00:14]} Nc6 {[%emt 0:00:11]} 3. Bc4 {[%emt 0:00:15]} Nf6 {[%emt 0:00:28]} 4. d3 {[%emt 0:00:18]} h6 {[%emt 0:00:37]} 5. O-O {[%emt 0:01:30]} d6 {[%emt 0:00:30]} 6. c3 {[%emt 0:00:58]} g5 {[%emt 0:01:36]} 7. Nbd2 {[%emt 0:06:17]} Rg8 {[%emt 0:02:53]} 8. Nb3 {[%emt 0:08:58]} Bg4 {[%emt 0:17:23] White is slightly better.} 9. Re1 {[%emt 0:07:06]} Bh5 {[%emt 0:09:16]} 10. Qc2 $2 {[%emt 0:12:13]} (10. Bb5 $16 {and life is bright. Na5 would now be deadly.} g4 11. Nfd2) 10... Bxf3 $17 {[%emt 0:14:35]} 11. gxf3 {[%emt 0:00:11]} Nh5 {[%emt 0:06:31]} (11... g4 $1 $15 12. Kh1 gxf3) 12. Kf1 {[%emt 0:07:55]} (12. Qd1 $11 {keeps the balance.}) 12... Qf6 {[%emt 0:03:54]} 13. Ke2 {[%emt 0:04:26]} g4 {[%emt 0:05:15]} (13... O-O-O $1 $17) 14. fxg4 $11 {[%emt 0:02:01]} Rxg4 {[%emt 0:01:21]} 15. Be3 {[%emt 0:02:23]} Nf4+ {[%emt 0:02:24]} 16. Kd2 $1 {[%emt 0:08:18]} Ng2 {[%emt 0:02:57] A dynamic duo of knights.} 17. Re2 {[%emt 0:01:17]} h5 {[%emt 0:03:20]} (17... a6 $15 {was preferrable.}) 18. Bb5 {[%emt 0:04:14]} (18. Rd1 $11) 18... a5 $15 {[%emt 0:04:08] Black is more active.} 19. d4 {[%emt 0:04:22][%cal Bd3d4,Bd4d5,Bd5c6][%mdl 32] Strongly threatening d5.} Nxe3 {[%emt 0:03:05]} ({Black should try} 19... Ke7 $15 20. Bxc6 bxc6) 20. fxe3 $11 {[%emt 0:00:18] Hoping for d5.} a4 {[%emt 0:04:02]} 21. d5 {[%emt 0:27:39]} axb3 {[%emt 0:00:55] [#]} 22. dxc6 $1 {[%emt 0:00:00]} b6 {[%emt 0:00:40]} 23. Qxb3 {[%emt 0:00:00]} Rxe4 {[%emt 0:01:57]} 24. Qd5 {[%emt 0:00:00]} Rg4 {[%emt 0:01:28]} 25. Rg2 {[%emt 0:00:00]} Ra5 {[%emt 0:01:47]} (25... Rxg2+ $11 {might be stronger.} 26. Qxg2 d5) 26. a4 $1 $14 {[%emt 0:00:00]} Bg7 {[%emt 0:04:32]} 27. Re1 {[%emt 0:00:00]} (27. h3 $1 $16 {[%cal Rh3g4]} Rxg2+ 28. Qxg2) 27... Rgxa4 $11 {[%emt 0:02:27]} 28. Qb3 {[%emt 0:00:00]} ({Don't blunder} 28. Rf1 $2 Qxf1 29. Bxf1 Rxd5+ $19) (28. e4 $1 $11 {is superior.}) 28... Rg4 $15 {[%emt 0:01:09]} 29. Rxg4 {[%emt 0:00:00]} hxg4 {[%emt 0:00:01]} 30. Bc4 {[%emt 0:00:00]} ({Only move:} 30. Rf1 $15 Qg6 31. Bc4) 30... Qg6 {[%emt 0:00:31]} (30... Qf2+ $19 31. Re2 Qf3) 31. Rf1 {[%emt 0:00:00][%cal Rc4f7]} Bf6 {[%emt 0:00:28]} 32. Be2 {[%emt 0:00:00] [#]} (32. Qd1 $15) 32... Ke7 {[%emt 0:01:24]} ({Black should play} 32... d5 $1 $19 {...Bg5 is the strong threat.} 33. Qc2 e4) 33. Qc4 $17 {[%emt 0:00:00][%cal Oe2d3]} Rc5 $36 {[%emt 0:01:08][%mdl 2048] Black is really pushing.} 34. Qa4 {[%emt 0:00:00][%mdl 8192] [#]} (34. Qxg4 $17 Rd5+ (34... Rxc6 35. Qxg6 fxg6 36. Rg1 $11) 35. Kc1 Qxg4 36. Bxg4) 34... Rd5+ $1 $19 {[%emt 0:00:17]} 35. Ke1 {[%emt 0:00:00]} Bh4+ {[%emt 0:00:08]} 36. Rf2 {[%emt 0:00:19]} Qf6 {[%emt 0:00:46] Weighted Error Value: White=0.57/Black=0.25 (precise) .  Loses game:     	White=1     	---        Mistake:       	White=7     	Black=7      Inaccurate:     	White=2     	Black=4      OK:         	White=6     	Black=9      Best:        	White=3     	Black=2      Strong:       	White=2     	Black=1} 0-1

[Event "French-ch U12-U14 2024"]
[Site "Agen"]
[Date "2024.04.17"]
[Round "5.10"]
[White "Lefol, Marius"]
[Black "Corral Nehama, Leo"]
[Result "0-1"]
[ECO "C54"]
[WhiteElo "1948"]
[BlackElo "1910"]
[Annotator "TA"]
[PlyCount "66"]
[EventDate "2024.04.14"]
[EventType "swiss"]
[EventCountry "FRA"]
[SourceTitle "playchess.com"]
[Source "ChessBase"]
[SourceQuality "1"]
[TimeControl "5400+30"]

{[%evp 14,66,22,8,15,6,15,24,16,0,7,-29,-56,-79,47,34,149,-15,-24,-22,-28,-18,-14,-21,-8,-85,-12,-289,-46,-56,-51,-141,-152,-438,-439,-442,-445,-447,-450,-433,-427,-521,-518,-580,-465,-695,-699,-742,-743,-910,-848,-869,-652,-29986,-29987]} 1. e4 {[%emt 0:00:04]} e5 {[%emt 0:00:40]} 2. Nf3 {[%emt 0:00:06]} Nc6 {[%emt 0:00:29]} 3. Bc4 {[%emt 0:00:05]} Bc5 {[%emt 0:00:29]} 4. c3 {[%emt 0:00:08]} Nf6 {[%emt 0:00:08]} 5. d3 {[%emt 0:00:05]} d6 {[%emt 0:00:55]} 6. O-O {[%emt 0:00:07]} a6 {[%emt 0:01:10]} 7. Bb3 {[%emt 0:00:09]} Ba7 {[%emt 0:00:08]} 8. Nbd2 {[%emt 0:00:15]} h6 {[%emt 0:01:02]} 9. Re1 {[%emt 0:00:07]} g5 {[%emt 0:03:28][%cal Bg7g5,Bg5g4][%mdl 32] [#]} 10. d4 $1 {[%emt 0:26:53]} g4 {[%emt 0:05:02] White has an edge.} 11. Nh4 {[%emt 0:04:49]} exd4 {[%emt 0:15:28]} 12. Nc4 {[%emt 0:06:03]} b5 {[%emt 0:07:32]} 13. Nd2 {[%emt 0:20:28]} O-O {[%emt 0:18:08]} (13... d3 $17 {...Ne5 is the strong threat.} 14. Nf1 Ne5) 14. Nf1 $14 {[%emt 0:11:13]} Nxe4 {[%emt 0:14:57]} 15. Ng6 $2 {[%emt 0:04:00]} (15. Rxe4 $16 Qxh4 16. Bd5) 15... Re8 $11 {[%emt 0:05:29][%cal Oe4f2] And now ...Nxf2! would win.} 16. Bd5 {[%emt 0:00:53]} (16. Bxh6 Qf6 (16... dxc3 $2 17. Be3 $19) 17. Ng3 Qxf2+ (17... Qxg6 $2 18. Nxe4 Rxe4 19. Rxe4 $19) 18. Kh1 Nxg3+ 19. hxg3 Rxe1+ 20. Qxe1 Qxe1+ (20... Qxb2 21. Qe8+ Kh7 22. Qh8+ Kxg6 23. Qg7+ Kf5 24. Qh7+ Kf6 25. Qxf7+ Ke5 26. Qf4#) 21. Rxe1 Kh7 $19) 16... Bd7 {[%emt 0:01:45]} 17. Rxe4 {[%emt 0:04:01]} Rxe4 {[%emt 0:00:19]} 18. Bxe4 {[%emt 0:00:04]} fxg6 {[%emt 0:00:13]} 19. Bxh6 {[%emt 0:01:55] [#]} (19. cxd4 $11 Qe8 20. Ng3) 19... Qf6 {[%emt 0:04:00]} (19... Kh7 $1 $17 {Strongly threatening ...d5.} 20. Qd2 dxc3 21. bxc3 Bxf2+ 22. Qxf2 Kxh6) 20. Qb3+ {[%emt 0:01:27][%mdl 8192]} (20. cxd4 $1 $11 {and White has nothing to worry.} Bxd4 21. Ne3 Bxb2 22. Rb1 (22. Nxg4 Bxg4 23. Qxg4 Ne5 $15) (22. Bxc6 Bxc6 23. Rb1 Qc3 $11)) 20... Kh7 $2 {[%emt 0:01:12]} ({Black should try} 20... Be6 $19 21. Qa3 dxc3) 21. Bg5 $1 $15 {[%emt 0:00:19]} Qg7 $40 {[%emt 0:01:44][%mdl 128] Black attacks.} 22. Ng3 {[%emt 0:01:03] [#]} (22. Bxc6 $15 Bxc6 23. Rc1) 22... Rf8 $1 $17 {[%emt 0:02:40] White must now prevent ...dxc3.} 23. Nh5 $2 {[%emt 0:02:33]} (23. Rf1 $17) 23... Qe5 $1 $19 {[%emt 0:00:01][%csl LRe4,LRg5]} 24. Nf6+ {[%emt 0:03:55]} Rxf6 {[%emt 0:00:01]} 25. Bxf6 {[%emt 0:00:06]} Qxf6 {[%emt 0:00:14]} ({And not} 25... Qxe4 26. Qf7+ Kh6 27. Qg7+ Kh5 28. Qh8#) 26. Rf1 {[%emt 0:00:39]} Ne7 {[%emt 0:02:04][%cal Od6d5]} 27. cxd4 {[%emt 0:02:27]} Bxd4 {[%emt 0:00:16]} 28. Qd1 {[%emt 0:00:41]} c5 {[%emt 0:00:42]} 29. Kh1 {[%emt 0:00:17]} (29. b3 $142) 29... d5 {[%emt 0:00:21]} 30. Bc2 {[%emt 0:00:19]} Bxb2 {[%emt 0:01:03]} 31. f3 {[%emt 0:00:08] [#]} g3 $1 {[%emt 0:00:09]} 32. Qe1 {[%emt 0:02:04]} (32. hxg3 Kg8) 32... Qe5 {[%emt 0:02:46]} 33. Qd2 {[%emt 0:02:27]} Qh5 {[%emt 0:02:01] Weighted Error Value: White=0.90/Black=0.49.  Loses game:     	White=2     	---        Missed win:     	---       	Black=1      Mistake:       	White=4     	Black=3      Inaccurate:     	White=1     	---        OK:         	White=7     	Black=8      Best:        	---       	Black=3      Strong:       	White=1     	Black=1} 0-1

[Event "French-ch U12-U14 2024"]
[Site "Agen"]
[Date "2024.04.17"]
[Round "5.11"]
[White "Bernard, Ines"]
[Black "Fischler, Ines"]
[Result "1-0"]
[ECO "B13"]
[WhiteElo "1981"]
[BlackElo "1698"]
[Annotator "TA"]
[PlyCount "153"]
[EventDate "2024.04.14"]
[EventType "swiss"]
[EventCountry "FRA"]
[SourceTitle "playchess.com"]
[Source "ChessBase"]
[SourceQuality "1"]
[TimeControl "5400+30"]

{[%evp 14,153,41,13,25,-3,5,10,39,24,18,-23,-57,-42,-13,-26,-21,-52,0,-14,0,0,39,58,110,20,26,24,33,14,85,88,111,93,94,53,124,120,126,85,77,-18,0,0,20,0,0,0,8,0,0,0,0,0,114,117,121,121,130,101,126,119,139,127,137,122,147,102,141,125,168,99,140,129,144,152,167,160,415,415,410,401,395,382,403,404,369,308,447,438,456,443,533,536,512,499,543,500,545,537,515,508,499,476,505,489,416,397,601,672,620,647,665,676,627,753,728,728,1041,992,2225,2290,4622,4013,29976,29976,29977,29976,29977,29970,29980,29981,29981,29982,29982,29983,29983,29984,29987,29988,29988,29989]} 1. e4 {[%emt 0:00:05]} c6 {[%emt 0:00:07]} 2. d4 {[%emt 0:00:07]} d5 {[%emt 0:00:05]} 3. exd5 {[%emt 0:00:04]} cxd5 {[%emt 0:00:05]} 4. Bd3 {[%emt 0:00:13]} Nc6 {[%emt 0:00:12]} 5. c3 {[%emt 0:00:04]} Qc7 {[%emt 0:00:32]} 6. Na3 {[%emt 0:00:18]} a6 {[%emt 0:06:39]} 7. Nc2 {[%emt 0:00:11]} e6 {[%emt 0:03:04]} 8. g3 {[%emt 0:02:20]} Bd6 {[%emt 0:06:09]} 9. Qg4 {[%emt 0:01:43]} f6 {[%emt 0:03:44]} 10. Bxh7 {[%emt 0:07:06]} e5 {[%emt 0:23:10]} 11. Bg6+ {[%emt 0:08:37]} Kf8 {[%emt 0:00:44]} 12. Qd1 {[%emt 0:04:14]} Nge7 {[%emt 0:04:35]} 13. Bh5 {[%emt 0:01:50]} Bf5 {[%emt 0:02:34]} 14. dxe5 {[%emt 0:03:23]} Nxe5 {[%emt 0:02:59]} 15. Be2 {[%emt 0:00:30]} Bc5 {[%emt 0:06:45]} (15... Be4 $15 16. Nd4 Kg8) 16. Nd4 {[%emt 0:03:06]} Bxd4 {[%emt 0:06:03]} 17. Qxd4 {[%emt 0:01:05]} Bc2 {[%emt 0:04:15]} 18. Bf4 {[%emt 0:03:44]} Rd8 {[%emt 0:03:11]} ({Black should play} 18... Be4 $14 19. f3 Bg6) 19. Rc1 {[%emt 0:02:22]} (19. Nf3 $16 {[%cal Rf3e5]} N7c6 20. Bxe5 fxe5 21. Qd2) 19... Be4 $11 {[%emt 0:01:48]} 20. f3 {[%emt 0:04:09]} Bg6 {[%emt 0:00:06]} 21. h4 {[%emt 0:04:35]} N7c6 {[%emt 0:00:48]} (21... Nf5 $11 {keeps the balance.} 22. Qa7 Bf7) 22. Qc5+ {[%emt 0:00:45]} Qe7 {[%emt 0:01:29]} 23. Qxe7+ {[%emt 0:00:31]} Kxe7 {[%emt 0:00:04]} 24. Be3 {[%emt 0:01:30]} Nd3+ {[%emt 0:00:19]} (24... Kf7 $14) 25. Bxd3 $16 {[%emt 0:00:21]} Bxd3 {[%emt 0:00:05]} 26. Nh3 {[%emt 0:00:25]} Ne5 {[%emt 0:01:49]} 27. f4 {[%emt 0:11:22]} (27. Kf2 $16) 27... Be4 {[%emt 0:01:28]} 28. O-O {[%emt 0:00:11]} Nc4 {[%emt 0:01:09]} 29. Bc5+ {[%emt 0:00:56]} Kf7 {[%emt 0:00:08]} 30. Rf2 {[%emt 0:00:50]} Bf5 {[%emt 0:01:13]} 31. Kh2 {[%emt 0:01:20]} Rhe8 {[%emt 0:00:20]} 32. Ng1 {[%emt 0:01:57]} Bg4 {[%emt 0:00:19]} 33. Kg2 {[%emt 0:01:50]} Ne3+ {[%emt 0:00:44]} (33... Rc8 $11 {remains equal.} 34. Bd4 Re7) 34. Bxe3 $16 {[%emt 0:00:18]} Rxe3 {[%emt 0:00:04]} 35. Rd2 {[%emt 0:00:44]} b5 {[%emt 0:00:46]} 36. Rf1 {[%emt 0:01:09]} Re7 {[%emt 0:01:03]} 37. Nf3 {[%emt 0:00:15]} Bf5 {[%emt 0:00:42]} 38. Nd4 {[%emt 0:00:41]} Be4+ {[%emt 0:00:07]} 39. Kf2 {[%emt 0:00:09]} Rc8 {[%emt 0:00:53]} 40. Rfd1 {[%emt 0:00:42]} Rec7 {[%emt 0:01:21]} 41. a3 {[%emt 0:00:24]} Rd7 {[%emt 0:01:25]} 42. Nc2 {[%emt 0:00:31]} (42. f5 $18) 42... Rcd8 {[%emt 0:01:16]} 43. Nb4 {[%emt 0:01:39]} Rd6 {[%emt 0:00:09]} 44. Rd4 {[%emt 0:00:19]} Ke7 {[%emt 0:01:02]} 45. Re1 {[%emt 0:00:53]} R8d7 $2 {[%emt 0:00:53]} (45... f5 $16 {was called for.} 46. g4 g6) 46. Nxd5+ $18 {[%emt 0:00:33]} Rxd5 {[%emt 0:00:21]} 47. Rexe4+ {[%emt 0:00:09]} Kf7 {[%emt 0:00:08]} 48. Rxd5 {[%emt 0:00:24]} Rxd5 {[%emt 0:00:09]} 49. Rd4 {[%emt 0:00:02]} Rc5 {[%emt 0:00:26]} 50. Kf3 {[%emt 0:00:43]} Kg6 {[%emt 0:01:01]} (50... Ke6 {might work better.} 51. Rd8 f5 52. Re8+ Kf6) 51. g4 $18 {[%emt 0:00:20]} a5 {[%emt 0:00:48]} 52. f5+ {[%emt 0:00:37]} Kh6 {[%emt 0:00:52]} 53. Rd6 {[%emt 0:01:56]} Kh7 {[%emt 0:00:27]} 54. Ra6 {[%emt 0:00:39]} a4 {[%emt 0:00:08]} 55. Rb6 {[%emt 0:00:10]} Rd5 {[%emt 0:01:01]} 56. Rb8 {[%emt 0:01:01]} Rc5 {[%emt 0:00:31]} 57. Rd8 {[%emt 0:00:11]} Re5 {[%emt 0:00:43]} 58. Rd4 {[%emt 0:00:10]} Rc5 {[%emt 0:00:30]} 59. Ke3 {[%emt 0:00:53]} Re5+ {[%emt 0:00:36]} 60. Kd2 {[%emt 0:00:15]} Kg8 {[%emt 0:00:51]} (60... Rc5 $142 61. Kd3 Kh6) 61. c4 $18 {[%emt 0:00:17]} bxc4 {[%emt 0:00:48]} 62. Rxc4 {[%emt 0:00:09]} Ra5 {[%emt 0:00:03]} 63. Kc3 {[%emt 0:01:55]} Kf7 {[%emt 0:00:29]} 64. b4 {[%emt 0:02:06]} axb3 {[%emt 0:00:20]} 65. Kxb3 {[%emt 0:00:06]} Re5 {[%emt 0:00:57]} 66. a4 {[%emt 0:00:33]} Re1 {[%emt 0:00:50]} 67. a5 {[%emt 0:02:59]} Rb1+ {[%emt 0:00:15]} 68. Ka4 {[%emt 0:00:06]} Ra1+ {[%emt 0:00:16]} 69. Kb5 {[%emt 0:00:03]} Rb1+ {[%emt 0:00:47]} 70. Rb4 {[%emt 0:00:07]} Ra1 {[%emt 0:00:26]} 71. Kb6 {[%emt 0:00:04]} Ke7 {[%emt 0:00:14]} 72. a6 {[%emt 0:00:24]} Kd7 {[%emt 0:00:31]} 73. Kb7 {[%emt 0:00:05]} Rc1 {[%emt 0:00:19]} 74. a7 {[%emt 0:00:17]} Rc7+ {[%emt 0:00:15]} 75. Ka6 {[%emt 0:00:06]} Rc8 {[%emt 0:00:27]} 76. Rd4+ {[%emt 0:00:16]} Ke7 {[%emt 0:00:28]} 77. Kb7 {[%emt 0:00:04]} 1-0

[Event "French-ch U12-U14 2024"]
[Site "Agen"]
[Date "2024.04.17"]
[Round "5.12"]
[White "Castagnerol, Cerise"]
[Black "Nicot, Anna"]
[Result "1-0"]
[ECO "A91"]
[WhiteElo "1755"]
[BlackElo "1649"]
[Annotator "NA RC COMBH"]
[PlyCount "79"]
[EventDate "2024.04.14"]
[EventType "swiss"]
[EventCountry "FRA"]
[SourceTitle "playchess.com"]
[Source "ChessBase"]
[SourceQuality "1"]
[TimeControl "5400+30"]

1. d4 {[%emt 0:00:06]} e6 {[%emt 0:00:04]} 2. g3 {[%emt 0:00:22]} f5 {[%emt 0:00:05]} 3. Bg2 {[%emt 0:00:19]} Nf6 {[%emt 0:00:09]} 4. Nh3 {[%emt 0:00:29]} Be7 {[%emt 0:00:34]} 5. O-O {[%emt 0:01:00]} O-O {[%emt 0:00:12]} 6. c4 {[%emt 0:00:44]} d6 {[%emt 0:00:43]} 7. Nc3 {[%emt 0:01:19]} Nbd7 {[%emt 0:05:09]} 8. b3 {[%emt 0:14:31]} e5 {[%emt 0:14:14]} 9. dxe5 {[%emt 0:02:09]} dxe5 {[%emt 0:02:08]} 10. Nd5 {[%emt 0:04:48]} c6 {[%emt 0:02:00]} 11. Nxe7+ {[%emt 0:02:03]} Qxe7 {[%emt 0:00:14]} 12. Qc2 {[%emt 0:02:03]} Nc5 {[%emt 0:03:33]} 13. Bb2 {[%emt 0:02:40]} Bd7 {[%emt 0:16:31]} 14. Ng5 {[%emt 0:12:34]} Ng4 {[%emt 0:09:11]} 15. Nf3 {[%emt 0:01:39]} e4 {[%emt 0:04:34]} 16. Nd4 {[%emt 0:01:11]} e3 {[%emt 0:03:37]} 17. f3 {[%emt 0:02:49]} Ne5 {[%emt 0:00:08]} 18. Qc3 {[%emt 0:01:09]} Ng6 {[%emt 0:06:58]} 19. Nc2 {[%emt 0:04:10]} Rae8 {[%emt 0:01:29]} 20. Nxe3 {[%emt 0:01:08]} Qxe3+ {[%emt 0:00:22]} 21. Qxe3 {[%emt 0:00:02]} Rxe3 {[%emt 0:00:16]} 22. Bd4 {[%emt 0:00:15]} Rxe2 {[%emt 0:00:30]} 23. Bxc5 {[%emt 0:00:32]} Rfe8 {[%emt 0:00:08]} 24. Rfd1 {[%emt 0:03:22]} Bc8 {[%emt 0:06:03]} 25. Bf1 {[%emt 0:01:06]} R2e5 {[%emt 0:02:16]} 26. Bd6 {[%emt 0:03:40]} Re3 {[%emt 0:01:02]} 27. Kf2 {[%emt 0:01:23]} h5 {[%emt 0:03:00]} 28. c5 {[%emt 0:01:33]} h4 {[%emt 0:01:03]} 29. Bc4+ {[%emt 0:00:32]} Kh7 {[%emt 0:00:58]} 30. Rd2 {[%emt 0:01:55]} hxg3+ {[%emt 0:00:28]} 31. hxg3 {[%emt 0:00:14]} Rc3 {[%emt 0:04:07]} 32. Rh1+ {[%emt 0:02:03]} Nh4 {[%emt 0:00:32]} 33. Rxh4+ {[%emt 0:00:03]} Kg6 {[%emt 0:00:10]} 34. Rhd4 {[%emt 0:01:40]} Rc1 {[%emt 0:01:18]} 35. Re2 {[%emt 0:00:57]} Rh8 {[%emt 0:00:32]} 36. Rh4 {[%emt 0:03:14]} Rd8 {[%emt 0:01:30]} 37. Re7 {[%emt 0:03:45]} Rc2+ {[%emt 0:00:23]} 38. Ke3 {[%emt 0:00:26]} Rc1 {[%emt 0:01:28]} 39. Be5 {[%emt 0:03:02]} f4+ {[%emt 0:00:47]} 40. gxf4 {[%emt 0:01:05]} 1-0

[Event "French-ch U12-U14 2024"]
[Site "Agen"]
[Date "2024.04.17"]
[Round "5.13"]
[White "Kirschner, Sarah"]
[Black "Ourry, Elina"]
[Result "0-1"]
[ECO "D27"]
[WhiteElo "1612"]
[BlackElo "1678"]
[Annotator "NA RC COMBH"]
[PlyCount "50"]
[EventDate "2024.04.14"]
[EventType "swiss"]
[EventCountry "FRA"]
[SourceTitle "playchess.com"]
[Source "ChessBase"]
[SourceQuality "1"]
[TimeControl "5400+30"]

1. d4 {[%emt 0:00:01]} d5 {[%emt 0:00:07]} 2. Nf3 {[%emt 0:00:12]} Nf6 {[%emt 0:00:21]} 3. c4 {[%emt 0:00:17]} dxc4 {[%emt 0:00:21]} 4. e3 {[%emt 0:00:26]} e6 {[%emt 0:00:09]} 5. Bxc4 {[%emt 0:00:29]} c5 {[%emt 0:00:35]} 6. O-O {[%emt 0:00:37]} a6 {[%emt 0:00:38]} 7. Nc3 {[%emt 0:00:47]} b5 {[%emt 0:00:34]} 8. Bb3 {[%emt 0:00:27]} Bb7 {[%emt 0:00:35]} 9. Re1 {[%emt 0:01:39]} Nbd7 {[%emt 0:01:25]} 10. h3 {[%emt 0:02:31]} Be7 {[%emt 0:02:19]} 11. dxc5 {[%emt 0:01:20]} Bxc5 {[%emt 0:02:05]} 12. Bd2 {[%emt 0:02:25]} O-O {[%emt 0:01:41]} 13. Rc1 {[%emt 0:00:42]} Qb6 {[%emt 0:02:58]} 14. Re2 {[%emt 0:08:41]} Bxf3 {[%emt 0:07:52]} 15. gxf3 {[%emt 0:00:20]} Ne5 {[%emt 0:02:20]} 16. Kg2 {[%emt 0:06:36]} Qb7 {[%emt 0:12:52]} 17. e4 {[%emt 0:00:57]} Nd3 {[%emt 0:05:26]} 18. Rc2 {[%emt 0:04:50]} Rfd8 {[%emt 0:09:25]} 19. Qg1 {[%emt 0:01:33]} Nh5 {[%emt 0:01:46]} 20. Kf1 {[%emt 0:01:53]} Nhf4 {[%emt 0:05:03]} 21. Bxf4 {[%emt 0:00:35]} Nxf4 {[%emt 0:00:25]} 22. Re1 {[%emt 0:02:20]} Nxh3 {[%emt 0:01:45]} 23. Qg4 {[%emt 0:04:37]} Nxf2 {[%emt 0:02:49]} 24. Kg2 {[%emt 0:01:01]} Nxg4 {[%emt 0:00:14]} 25. fxg4 {[%emt 0:00:07]} Bb4 {[%emt 0:02:12]} 0-1